bitfinex-derivatives/quotes_BNBF0:USTF0_20250807
["timestamp","ask_amount","ask_price","bid_price","bid_amount"]
[1754602619049,0.85735826,783.43,783.29,0.879]
[1754602619350,0.85735826,783.42,783.29,0.879]
[1754602619649,0.85735826,783.41,783.29,0.879]
[1754602619843,0.85735826,783.4,783.29,0.879]
[1754602620045,0.85735826,783.39,783.29,0.879]
[1754602620249,0.85735826,783.38,783.29,0.879]
[1754602620448,0.85735826,783.37,783.29,0.879]
[1754602620647,0.85735826,783.36,783.29,0.879]
[1754602620850,0.85979093,783.64,783.29,0.879]
[1754602621049,0.85770893,783.63,783.29,0.879]
[1754602621248,0.85770893,783.62,783.29,0.879]
[1754602621450,0.85770893,783.61,783.29,0.879]
[1754602621749,0.85770893,783.6,783.29,0.879]
[1754602621948,0.85770893,783.59,783.29,0.879]
[1754602622154,0.85770893,783.58,783.29,0.879]
[1754602622354,0.85770893,783.57,783.29,0.879]
[1754602622552,0.85770893,783.56,783.29,0.879]
[1754602622750,0.85770893,783.55,783.29,0.879]
[1754602622950,0.85770893,783.54,783.29,0.879]
[1754602623151,0.85770893,783.53,783.29,0.879]
[1754602623455,0.85770893,783.52,783.29,0.879]
[1754602623751,0.85816,783.51,783.29,0.879]
[1754602623955,0.85816,783.5,783.3,0.794]
[1754602624153,0.85816,783.49,783.3,0.794]
[1754602624354,0.85816,783.48,783.3,0.794]
[1754602624654,0.85816,783.47,783.3,0.794]
[1754602624954,0.85816,783.46,783.3,0.794]
[1754602625153,0.85816,783.45,783.3,0.794]
[1754602625350,0.85816,783.44,783.3,0.794]
[1754602625551,0.85816,783.43,783.3,0.794]
[1754602625753,0.85816,783.42,783.3,0.794]
[1754602625955,0.85816,783.41,783.3,0.794]
[1754602626156,0.85816,783.4,783.3,0.794]
[1754602626355,0.85816,783.39,783.3,0.794]
[1754602626555,0.85816,783.38,783.3,0.794]
[1754602626856,0.85816,783.37,783.3,0.794]
[1754602627056,0.85816,783.36,783.3,0.794]
[1754602627351,0.85816,783.35,783.3,0.794]
[1754602627652,0.85816,783.34,783.3,0.794]
[1754602627855,0.85816,783.33,783.3,0.794]
[1754602628156,0.85816,783.32,783.3,0.794]
[1754602628353,0.85816,783.31,783.3,0.794]
[1754602628857,1.71795093,783.61,783.3,0.794]
[1754602629152,0.85979093,783.59,783.3,0.794]
[1754602629354,0.85979093,783.56,783.3,0.794]
[1754602629553,0.85870921,783.55,783.3,0.794]
[1754602629755,0.85870921,783.54,783.3,0.794]
[1754602629953,0.85979093,783.51,783.3,0.794]
[1754602630156,0.85870921,783.5,783.3,0.794]
[1754602632556,0.85885388,783.49,783.3,0.794]
[1754602632756,0.85979093,783.51,783.3,0.794]
[1754602632757,0.85885388,783.48,783.3,0.794]
[1754602632955,0.85885388,783.47,783.3,0.794]
[1754602633158,0.85891067,783.46,783.3,0.794]
[1754602633362,0.85891067,783.45,783.3,0.794]
[1754602633661,0.85891067,783.44,783.3,0.794]
[1754602633862,0.85891067,783.43,783.3,0.794]
[1754602634161,0.85891067,783.42,783.3,0.794]
[1754602634459,0.85891067,783.41,783.3,0.794]
[1754602634663,0.85905309,783.4,783.3,0.794]
[1754602634860,0.85905309,783.39,783.3,0.794]
[1754602635061,0.85905309,783.38,783.3,0.794]
[1754602635359,0.85905309,783.37,783.3,0.794]
[1754602635565,0.85900577,783.36,783.31,0.947]
[1754602635763,0.85900577,783.35,783.31,0.947]
[1754602635966,0.85900577,783.34,783.31,0.947]
[1754602636165,0.85900577,783.33,783.31,0.947]
[1754602636362,0.85900577,783.32,783.31,0.947]
[1754602641567,0.85878294,783.32,783.31,0.947]
[1754602642066,1.139693,783.48,783.31,0.947]
[1754602642372,0.85881096,783.47,783.31,0.947]
[1754602642567,0.85881096,783.46,783.31,0.947]
[1754602642767,0.85881096,783.45,783.31,0.947]
[1754602643067,0.85881096,783.44,783.31,0.947]
[1754602643267,1.99850396,783.43,783.31,0.947]
[1754602643471,0.85881096,783.42,783.31,0.947]
[1754602643673,0.85881096,783.41,783.31,0.947]
[1754602643871,0.85881096,783.4,783.31,0.947]
[1754602644167,0.85881096,783.39,783.31,0.947]
[1754602644368,0.85881096,783.38,783.31,0.947]
[1754602644567,0.85881096,783.37,783.31,0.947]
[1754602644772,0.85881096,783.36,783.31,0.947]
[1754602644968,0.85881096,783.35,783.31,0.947]
[1754602645169,0.85881096,783.34,783.31,0.947]
[1754602645468,1.139693,783.38,783.31,0.947]
[1754602645469,0.85881096,783.33,783.31,0.947]
[1754602645669,0.85881096,783.32,783.31,0.947]
[1754602647373,1.139693,783.33,783.31,0.947]
[1754602647573,0.8585592,783.32,783.31,0.947]
[1754602648470,2.0033952,783.32,783.31,0.947]
[1754602649773,0.8585592,783.32,783.31,0.947]
[1754602650274,1.144836,783.32,783.31,0.947]
[1754602650474,0.85853162,783.32,783.31,0.947]
[1754602652477,0.85853162,783.32,783.3,0.794]
[1754602652779,0.85853162,783.31,783.3,0.794]
[1754602659286,0.85835283,783.31,783.3,0.794]
[1754602662284,0.85841983,783.58,783.3,0.794]
[1754602662488,0.85693248,783.57,783.3,0.794]
[1754602662683,1.71535231,783.56,783.3,0.794]
[1754602662885,0.85693248,783.55,783.3,0.794]
[1754602663084,0.85693248,783.54,783.3,0.794]
[1754602663385,0.85693248,783.53,783.3,0.794]
[1754602663685,0.85693248,783.52,783.3,0.794]
[1754602663888,0.85693248,783.51,783.3,0.794]
[1754602664188,0.22207049,783.89,783.3,0.794]
[1754602664189,0.85693248,783.5,783.3,0.794]
[1754602664488,0.85693248,783.49,783.3,0.794]
[1754602664685,0.85693248,783.48,783.3,0.794]
[1754602664985,0.85693248,783.47,783.3,0.794]
[1754602665183,0.85693248,783.46,783.3,0.794]
[1754602665387,0.22207049,783.89,783.3,0.794]
[1754602665388,0.85693248,783.45,783.3,0.794]
[1754602665585,0.85693248,783.44,783.3,0.794]
[1754602665787,0.22207049,783.89,783.3,0.794]
[1754602665788,0.85693248,783.43,783.3,0.794]
[1754602665986,0.85693248,783.42,783.3,0.794]
[1754602666289,0.85693248,783.41,783.3,0.794]
[1754602666490,0.85693248,783.4,783.3,0.794]
[1754602666689,0.85693248,783.39,783.3,0.794]
[1754602666888,0.85693248,783.38,783.3,0.794]
[1754602667092,0.85693248,783.37,783.3,0.794]
[1754602667288,0.85841983,783.74,783.3,0.794]
[1754602667493,0.85686291,783.73,783.3,0.794]
[1754602667691,0.85686291,783.72,783.3,0.794]
[1754602667894,0.85686291,783.71,783.3,0.794]
[1754602668092,0.85685509,783.7,783.3,0.794]
[1754602668295,0.85685509,783.69,783.3,0.794]
[1754602668494,0.85685509,783.68,783.3,0.794]
[1754602668693,0.85685509,783.67,783.3,0.794]
[1754602668895,0.85685509,783.66,783.3,0.794]
[1754602669095,0.85841983,783.74,783.3,0.794]
[1754602669096,0.85685509,783.65,783.3,0.794]
[1754602669391,0.85686452,783.64,783.3,0.794]
[1754602669595,0.85686452,783.63,783.3,0.794]
[1754602669789,0.85686452,783.62,783.3,0.794]
[1754602669993,0.85686452,783.61,783.24,0.689]
[1754602670191,0.85686452,783.6,783.24,0.689]
[1754602670394,0.85686452,783.59,783.25,0.728]
[1754602670693,0.85686452,783.58,783.25,0.728]
[1754602670892,0.85686452,783.57,783.25,0.728]
[1754602671096,0.85686452,783.56,783.25,0.728]
[1754602671292,0.85841983,783.5,783.25,0.728]
[1754602671497,0.85686452,783.49,783.25,0.728]
[1754602671994,1.71528435,783.49,783.25,0.728]
[1754602672295,0.85686452,783.48,783.25,0.728]
[1754602672596,0.85686452,783.48,783.26,1.005]
[1754602673998,0.85690465,783.47,783.26,1.005]
[1754602674294,0.85690465,783.46,783.26,1.005]
[1754602674594,0.85690465,783.45,783.26,1.005]
[1754602674793,0.85690465,783.44,783.26,1.005]
[1754602674996,0.85690465,783.43,783.26,1.005]
[1754602675293,0.85690465,783.42,783.26,1.005]
[1754602675496,0.85690465,783.41,783.26,1.005]
[1754602675794,0.85690465,783.4,783.26,1.005]
[1754602675994,0.85690465,783.39,783.26,1.005]
[1754602676294,0.85690465,783.38,783.26,1.005]
[1754602676496,0.85690465,783.37,783.26,1.005]
[1754602676695,0.85690465,783.36,783.26,1.005]
[1754602676896,0.85690465,783.48,783.26,1.005]
[1754602677095,0.85693396,783.47,783.26,1.005]
[1754602677295,0.85693396,783.46,783.26,1.005]
[1754602677494,0.85693396,783.45,783.26,1.005]
[1754602677693,0.85693396,783.44,783.26,1.005]
[1754602677895,0.85693396,783.43,783.26,1.005]
[1754602678098,0.85693396,783.42,783.26,1.005]
[1754602678395,0.85693396,783.41,783.26,1.005]
[1754602678595,0.85693396,783.4,783.26,1.005]
[1754602678795,0.85693396,783.39,783.26,1.005]
[1754602678993,0.85693396,783.38,783.26,1.005]
[1754602679297,0.85693396,783.37,783.26,1.005]
[1754602679497,0.85841983,783.62,783.26,1.005]
[1754602679696,0.85697958,783.61,783.26,1.005]
[1754602679900,0.85697958,783.6,783.26,1.005]
[1754602680097,0.85697958,783.59,783.26,1.005]
[1754602680295,0.85697958,783.58,783.26,1.005]
[1754602680498,0.85697958,783.57,783.26,1.005]
[1754602680697,0.85697958,783.56,783.26,1.005]
[1754602681002,0.85697958,783.55,783.26,1.005]
[1754602681199,0.85697958,783.54,783.26,1.005]
[1754602681398,0.85697958,783.53,783.26,1.005]
[1754602681701,0.85697958,783.52,783.26,1.005]
[1754602682003,0.85697958,783.51,783.26,1.005]
[1754602682302,0.85697958,783.5,783.26,1.005]
[1754602682499,0.85697958,783.49,783.26,1.005]
[1754602682703,0.85697958,783.48,783.27,1.073]
[1754602683002,0.85697958,783.47,783.27,1.073]
[1754602683203,0.85697958,783.46,783.27,1.073]
[1754602683403,0.85697958,783.45,783.27,1.073]
[1754602683605,0.85697958,783.44,783.27,1.073]
[1754602683802,0.85697958,783.43,783.27,1.073]
[1754602684002,0.2221286,783.63,783.27,1.073]
[1754602684200,0.85686222,783.62,783.27,1.073]
[1754602684406,0.2221286,783.63,783.27,1.073]
[1754602684407,0.85686222,783.61,783.27,1.073]
[1754602684603,0.85686222,783.6,783.27,1.073]
[1754602684800,0.85686222,783.59,783.27,1.073]
[1754602685004,0.85679484,783.58,783.27,1.073]
[1754602685205,0.85679484,783.57,783.27,1.073]
[1754602685510,0.85679484,783.56,783.27,1.073]
[1754602685705,0.85679484,783.55,783.27,1.073]
[1754602685907,0.85679484,783.54,783.27,1.073]
[1754602686108,0.85679484,783.53,783.27,1.073]
[1754602686308,0.85679484,783.52,783.27,1.073]
[1754602686502,0.85679484,783.51,783.27,1.073]
[1754602686707,0.85679484,783.5,783.27,1.073]
[1754602686903,0.85679484,783.49,783.27,1.073]
[1754602687101,0.85679484,783.48,783.27,1.073]
[1754602687307,0.85679484,783.47,783.27,1.073]
[1754602687505,0.2221286,783.63,783.27,1.073]
[1754602687706,0.8564884,783.62,783.27,1.073]
[1754602687905,0.8564884,783.61,783.27,1.073]
[1754602688108,0.8564884,783.6,783.27,1.073]
[1754602688306,0.8564884,783.59,783.27,1.073]
[1754602688507,0.8564884,783.58,783.27,1.073]
[1754602688711,0.8564884,783.57,783.27,1.073]
[1754602688911,0.8564884,783.56,783.27,1.073]
[1754602689109,0.2221286,783.63,783.27,1.073]
[1754602689110,0.8564884,783.55,783.27,1.073]
[1754602689314,0.8564884,783.54,783.27,1.073]
[1754602689513,0.8564884,783.53,783.27,1.073]
[1754602689714,0.8564884,783.52,783.27,1.073]
[1754602690009,0.8564884,783.51,783.27,1.073]
[1754602690214,0.8564884,783.5,783.27,1.073]
[1754602690411,0.8564884,783.49,783.27,1.073]
[1754602690613,0.8564884,783.48,783.27,1.073]
[1754602690816,0.8564884,783.47,783.27,1.073]
[1754602691112,0.8564884,783.46,783.27,1.073]
[1754602691316,0.2221286,783.63,783.27,1.073]
[1754602691616,0.8561186,783.62,783.27,1.073]
[1754602691815,0.2221286,783.63,783.27,1.073]
[1754602691816,0.8561186,783.61,783.27,1.073]
[1754602692017,0.8561186,783.6,783.27,1.073]
[1754602692216,0.8561186,783.59,783.27,1.073]
[1754602692516,0.8561186,783.58,783.27,1.073]
[1754602692816,0.8561186,783.57,783.27,1.073]
[1754602693119,0.8561186,783.56,783.27,1.073]
[1754602693317,0.8561186,783.55,783.27,1.073]
[1754602693615,0.8561186,783.54,783.27,1.073]
[1754602693813,0.2221286,783.63,783.27,1.073]
[1754602694014,0.85302974,783.62,783.27,1.073]
[1754602694318,0.85302974,783.61,783.27,1.073]
[1754602694517,0.85302974,783.6,783.27,1.073]
[1754602694717,0.85302974,783.59,783.27,1.073]
[1754602694920,0.85299662,783.58,783.27,1.073]
[1754602695215,0.85299662,783.57,783.27,1.073]
[1754602695518,0.85299662,783.56,783.27,1.073]
[1754602695719,0.85299662,783.55,783.27,1.073]
[1754602695919,0.85299662,783.54,783.26,1.005]
[1754602696118,0.85299662,783.53,783.26,1.005]
[1754602696316,0.85299662,783.52,783.26,1.005]
[1754602696517,0.85299662,783.51,783.26,1.005]
[1754602696719,0.85299662,783.5,783.26,1.005]
[1754602697018,0.85299662,783.49,783.26,1.005]
[1754602697215,0.85299662,783.48,783.26,1.005]
[1754602697515,0.85299662,783.47,783.26,1.005]
[1754602697721,0.85299662,783.46,783.26,1.005]
[1754602698020,0.85299662,783.45,783.26,1.005]
[1754602698220,0.2221286,783.63,783.26,1.005]
[1754602698415,0.85292133,783.62,783.26,1.005]
[1754602698619,0.85292133,783.61,783.26,1.005]
[1754602698917,0.85292133,783.6,783.26,1.005]
[1754602699120,0.85292133,783.59,783.26,1.005]
[1754602699415,0.85292133,783.58,783.26,1.005]
[1754602699619,0.85292133,783.57,783.27,1.054]
[1754602699817,0.85292133,783.56,783.27,1.054]
[1754602700017,0.85292133,783.55,783.27,1.054]
[1754602700217,0.85292133,783.54,783.27,1.054]
[1754602700420,0.2221286,783.63,783.27,1.054]
[1754602700421,0.85292133,783.53,783.27,1.054]
[1754602700622,0.85292133,783.52,783.27,1.054]
[1754602700822,0.85292133,783.51,783.27,1.054]
[1754602701021,0.2221286,783.63,783.27,1.054]
[1754602701022,0.85292133,783.5,783.27,1.054]
[1754602701220,0.85292133,783.49,783.27,1.054]
[1754602701520,0.85292133,783.48,783.27,1.054]
[1754602701820,0.85292133,783.47,783.27,1.054]
[1754602702022,0.85292133,783.46,783.27,1.054]
[1754602702223,0.2221286,783.63,783.27,1.054]
[1754602702422,0.85307967,783.62,783.28,0.675]
[1754602702621,0.85316173,783.61,783.28,0.675]
[1754602702825,0.85316173,783.6,783.28,0.675]
[1754602703024,0.85316173,783.59,783.28,0.675]
[1754602703320,0.85316173,783.58,783.28,0.675]
[1754602703525,0.85316173,783.57,783.28,0.675]
[1754602703724,0.85316173,783.56,783.28,0.675]
[1754602703924,0.85316173,783.55,783.28,0.675]
[1754602704121,0.85316173,783.54,783.28,0.675]
[1754602704323,0.85316173,783.53,783.28,0.675]
[1754602704524,0.85316173,783.52,783.28,0.675]
[1754602704722,0.85316173,783.51,783.28,0.675]
[1754602705025,0.85316173,783.5,783.28,0.675]
[1754602705322,0.85316173,783.49,783.28,0.675]
[1754602705523,0.85316173,783.48,783.28,0.675]
[1754602705723,0.85316173,783.47,783.28,0.675]
[1754602705921,0.85316173,783.46,783.28,0.675]
[1754602706223,0.85316173,783.45,783.28,0.675]
[1754602706425,0.85316173,783.44,783.28,0.675]
[1754602706623,0.85316173,783.43,783.28,0.675]
[1754602706927,0.85316173,783.42,783.28,0.675]
[1754602707223,0.85316173,783.41,783.28,0.675]
[1754602707427,0.85316173,783.4,783.28,0.675]
[1754602707627,0.85316173,783.39,783.28,0.675]
[1754602707922,0.85316173,783.38,783.28,0.675]
[1754602708124,0.85316173,783.37,783.28,0.675]
[1754602708326,0.85316173,783.36,783.28,0.675]
[1754602708526,0.85316173,783.35,783.28,0.675]
[1754602708724,0.85316173,783.34,783.28,0.675]
[1754602708928,0.85316173,783.33,783.28,0.675]
[1754602709126,0.8582177,783.58,783.28,0.675]
[1754602709323,0.85430505,783.57,783.28,0.675]
[1754602709526,0.85430505,783.56,783.28,0.675]
[1754602710529,1.71252275,783.56,783.28,0.675]
[1754602710729,0.85430505,783.55,783.28,0.675]
[1754602711327,0.8582177,783.54,783.28,0.675]
[1754602711527,0.85513564,783.53,783.28,0.675]
[1754602711729,0.85513564,783.52,783.28,0.675]
[1754602711930,0.85513564,783.51,783.28,0.675]
[1754602712132,0.85513564,783.5,783.28,0.675]
[1754602712333,0.85513564,783.49,783.28,0.675]
[1754602712531,0.2221286,783.63,783.28,0.675]
[1754602712532,0.85513564,783.48,783.28,0.675]
[1754602712828,0.85513564,783.47,783.28,0.675]
[1754602713039,0.85513564,783.46,783.28,0.675]
[1754602713227,0.85513564,783.45,783.28,0.675]
[1754602713429,0.85513564,783.44,783.28,0.675]
[1754602713630,0.85513564,783.43,783.28,0.675]
[1754602713930,0.85513564,783.42,783.28,0.675]
[1754602714129,0.85513564,783.41,783.28,0.675]
[1754602714333,0.85513564,783.4,783.28,0.675]
[1754602714531,0.85513564,783.39,783.28,0.675]
[1754602714736,0.85513564,783.38,783.28,0.675]
[1754602715034,0.85513564,783.37,783.28,0.675]
[1754602715235,0.85513564,783.36,783.28,0.675]
[1754602715435,0.85513564,783.35,783.28,0.675]
[1754602715731,0.85513564,783.34,783.28,0.675]
[1754602715931,0.85513564,783.33,783.28,0.675]
[1754602716130,0.85513564,783.32,783.28,0.675]
[1754602716332,0.85513564,783.31,783.28,0.675]
[1754602716532,0.85513564,783.3,783.28,0.675]
[1754602716834,0.85513564,783.29,783.28,0.675]
[1754602717030,0.85513564,783.48,783.28,0.675]
[1754602717434,1.71335334,783.48,783.28,0.675]
[1754602717633,0.85513564,783.47,783.28,0.675]
[1754602720134,1.71335334,783.47,783.28,0.675]
[1754602720332,0.85613592,783.46,783.28,0.675]
[1754602720539,0.85613592,783.45,783.28,0.675]
[1754602720837,0.85614741,783.44,783.28,0.675]
[1754602721033,0.8582177,783.47,783.28,0.675]
[1754602721034,0.85614741,783.43,783.28,0.675]
[1754602721234,0.85614741,783.42,783.28,0.675]
[1754602721535,0.85614741,783.41,783.28,0.675]
[1754602721735,0.85614741,783.4,783.28,0.675]
[1754602721933,0.85614741,783.39,783.28,0.675]
[1754602722133,0.85614741,783.38,783.28,0.675]
[1754602722437,0.85614741,783.37,783.28,0.675]
[1754602722638,0.85614741,783.36,783.28,0.675]
[1754602722838,0.85614741,783.35,783.28,0.675]
[1754602723038,0.85614741,783.34,783.29,0.796]
[1754602723236,0.85614741,783.33,783.29,0.796]
[1754602723541,0.85614741,783.32,783.29,0.796]
[1754602723739,0.85614741,783.31,783.29,0.796]
[1754602724039,0.85614741,783.3,783.29,0.796]
[1754602724239,0.85614741,783.42,783.29,0.796]
[1754602728649,0.85614741,783.41,783.29,0.796]
[1754602728944,0.8582177,783.43,783.29,0.796]
[1754602728945,0.85614741,783.4,783.29,0.796]
[1754602729150,0.8567343,783.39,783.29,0.796]
[1754602729349,0.8567343,783.38,783.29,0.796]
[1754602729649,0.8567343,783.37,783.29,0.796]
[1754602729855,0.8582177,783.43,783.29,0.796]
[1754602729856,0.8567599,783.36,783.29,0.796]
[1754602730047,0.8567599,783.35,783.29,0.796]
[1754602730350,0.8567599,783.34,783.29,0.796]
[1754602730547,0.8567599,783.33,783.29,0.796]
[1754602730847,0.8567599,783.32,783.29,0.796]
[1754602731150,0.8567599,783.31,783.29,0.796]
[1754602731448,0.8567599,783.3,783.29,0.796]
[1754602732451,0.8567599,783.44,783.29,0.796]
[1754602732652,0.8567599,783.43,783.29,0.796]
[1754602732949,0.8567599,783.42,783.29,0.796]
[1754602733152,0.2221286,783.63,783.29,0.796]
[1754602733153,0.8567599,783.41,783.29,0.796]
[1754602733348,0.8567599,783.4,783.29,0.796]
[1754602733553,0.8567599,783.39,783.29,0.796]
[1754602733853,0.8567599,783.38,783.29,0.796]
[1754602734149,0.8567599,783.37,783.29,0.796]
[1754602734348,0.8567599,783.36,783.29,0.796]
[1754602734552,0.8567599,783.35,783.29,0.796]
[1754602734751,0.8567599,783.34,783.29,0.796]
[1754602735049,0.8567599,783.33,783.29,0.796]
[1754602735248,0.8567599,783.32,783.29,0.796]
[1754602735447,0.8582177,783.48,783.29,0.796]
[1754602735448,0.8567599,783.31,783.29,0.796]
[1754602735649,0.8582177,783.48,783.29,0.796]
[1754602735650,0.8567599,783.3,783.29,0.796]
[1754602736051,0.8567599,783.47,783.29,0.796]
[1754602736249,0.8567599,783.46,783.29,0.796]
[1754602736449,0.8567599,783.45,783.29,0.796]
[1754602736653,0.8567599,783.44,783.29,0.796]
[1754602736853,0.8567599,783.43,783.29,0.796]
[1754602737149,0.8567599,783.42,783.29,0.796]
[1754602737349,0.8567599,783.41,783.29,0.796]
[1754602737553,0.8567599,783.4,783.29,0.796]
[1754602737754,0.8567599,783.39,783.29,0.796]
[1754602737949,0.85670333,783.38,783.29,0.796]
[1754602738150,0.85670333,783.37,783.29,0.796]
[1754602738353,0.85670333,783.36,783.29,0.796]
[1754602738553,0.8566629,783.35,783.29,0.796]
[1754602738752,0.8566629,783.34,783.29,0.796]
[1754602738955,0.8566629,783.33,783.29,0.796]
[1754602739255,0.8566629,783.32,783.29,0.796]
[1754602739452,0.8566629,783.31,783.29,0.796]
[1754602739650,0.8566629,783.3,783.29,0.796]
[1754602741954,0.8566629,783.3,783.28,0.675]
[1754602742154,0.8566629,783.29,783.28,0.675]
[1754602745757,0.8582177,783.47,783.28,0.675]
[1754602746054,0.85648387,783.46,783.28,0.675]
[1754602746354,0.85648387,783.45,783.28,0.675]
[1754602746553,0.85648387,783.44,783.28,0.675]
[1754602746756,0.85648387,783.43,783.28,0.675]
[1754602747057,0.85648387,783.42,783.28,0.675]
[1754602747253,0.85648387,783.41,783.28,0.675]
[1754602747453,0.85648387,783.4,783.28,0.675]
[1754602747655,0.85648387,783.39,783.28,0.675]
[1754602747858,0.85648387,783.38,783.28,0.675]
[1754602748057,0.85648387,783.37,783.28,0.675]
[1754602748259,0.85648387,783.36,783.28,0.675]
[1754602748456,0.85648387,783.35,783.28,0.675]
[1754602748661,0.85648387,783.34,783.28,0.675]
[1754602748860,0.85648387,783.33,783.28,0.675]
[1754602749061,0.85648387,783.32,783.28,0.675]
[1754602749260,0.85648387,783.31,783.28,0.675]
[1754602749458,0.85648387,783.3,783.28,0.675]
[1754602749655,0.85648387,783.29,783.28,0.675]
[1754602750058,0.85648387,783.36,783.28,0.675]
[1754602750258,0.85648387,783.35,783.28,0.675]
[1754602750456,0.85648387,783.34,783.28,0.675]
[1754602750656,0.85648387,783.33,783.28,0.675]
[1754602750858,0.85648387,783.32,783.28,0.675]
[1754602751057,0.85648387,783.31,783.28,0.675]
[1754602751261,0.85648387,783.3,783.28,0.675]
[1754602751557,0.85648387,783.29,783.28,0.675]
[1754602754663,0.85962621,783.31,783.28,0.675]
[1754602754868,0.85932015,783.3,783.28,0.675]
[1754602755063,0.85932015,783.29,783.28,0.675]
[1754602755268,0.85927036,783.29,783.28,0.675]
[1754602758871,0.8592271,783.29,783.28,0.675]
[1754602762572,0.8592271,783.29,783.22,0.752]
[1754602762776,0.8592271,783.28,783.22,0.752]
[1754602762973,0.8592271,783.27,783.22,0.752]
[1754602763176,0.8592271,783.26,783.22,0.752]
[1754602763475,0.8592271,783.25,783.22,0.752]
[1754602763673,0.85962621,783.47,783.22,0.752]
[1754602763872,0.85938971,783.46,783.22,0.752]
[1754602764076,0.85938971,783.45,783.22,0.752]
[1754602764273,0.85943922,783.44,783.22,0.752]
[1754602764473,0.85943922,783.43,783.22,0.752]
[1754602764678,0.85943922,783.42,783.22,0.752]
[1754602764876,0.85943922,783.41,783.22,0.752]
[1754602765077,0.85943922,783.4,783.22,0.752]
[1754602765373,0.85943922,783.39,783.22,0.752]
[1754602765573,0.85943922,783.38,783.22,0.752]
[1754602765775,0.85943922,783.37,783.22,0.752]
[1754602765973,0.85943922,783.36,783.22,0.752]
[1754602766172,0.85943922,783.35,783.22,0.752]
[1754602766373,0.85943922,783.34,783.22,0.752]
[1754602766575,0.85943922,783.33,783.22,0.752]
[1754602766775,0.85943922,783.32,783.22,0.752]
[1754602766977,0.85943922,783.31,783.22,0.752]
[1754602767186,0.85943922,783.3,783.22,0.752]
[1754602767385,0.85943922,783.29,783.22,0.752]
[1754602767580,0.85943922,783.28,783.22,0.752]
[1754602767877,0.85943922,783.27,783.22,0.752]
[1754602768080,0.85943922,783.26,783.22,0.752]
[1754602768284,0.85943922,783.25,783.22,0.752]
[1754602768580,0.85943922,783.24,783.22,0.752]
[1754602768784,0.85943922,783.23,783.22,0.752]
[1754602769983,0.85943922,783.4,783.22,0.752]
[1754602770282,0.85943922,783.39,783.22,0.752]
[1754602770584,0.85943922,783.38,783.22,0.752]
[1754602770786,0.85943922,783.37,783.22,0.752]
[1754602771085,0.85943922,783.36,783.22,0.752]
[1754602771281,0.85943922,783.35,783.22,0.752]
[1754602771479,0.85943922,783.34,783.22,0.752]
[1754602771679,0.85943922,783.33,783.22,0.752]
[1754602771980,0.85943922,783.32,783.22,0.752]
[1754602772182,0.85943922,783.31,783.22,0.752]
[1754602772482,0.85962621,783.37,783.22,0.752]
[1754602772684,0.85948876,783.36,783.22,0.752]
[1754602772879,0.85948876,783.35,783.22,0.752]
[1754602773081,0.85948876,783.34,783.22,0.752]
[1754602773279,0.85948876,783.33,783.22,0.752]
[1754602773484,0.85948876,783.32,783.22,0.752]
[1754602773682,0.85948876,783.31,783.18,1.517]
[1754602773882,0.85948876,783.3,783.18,1.517]
[1754602774082,0.85948876,783.29,783.18,1.517]
[1754602774285,0.85948876,783.28,783.18,1.517]
[1754602774485,0.85962621,783.58,783.18,1.517]
[1754602774685,0.85943394,783.57,783.18,1.517]
[1754602774984,0.85943394,783.56,783.18,1.517]